[Event "Titled Tuesday Blitz June 20 Early 2023"]
[White "Savitha Shri B"]
[Black "Danielyan, Vahe"]
[WhiteFideId "35061887"]
[BlackFideId "13304828"]
[WhiteElo "2172"]
[BlackElo "2423"]
[Result "1-0"]
[Round "4"]
[TimeControl "180+2"]
[Date "2023.06.20"]
[WhiteClock "0:00:18"]
[BlackClock "0:00:00"]
[Board "135"]

1. d4 {[%clk 0:02:57]}  Nf6 {[%clk 0:02:59]} 2. Nc3 {[%clk 0:02:57]}  d5 {[%clk 0:02:58]} 3. Bf4 {[%clk 0:02:56]}  a6 {[%clk 0:02:56]} 4. a4 {[%clk 0:02:52]}  c5 {[%clk 0:02:54]} 5. dxc5 {[%clk 0:02:49]}  Nc6 {[%clk 0:02:51]} 6. Nf3 {[%clk 0:02:47]}  Bg4 {[%clk 0:02:47]} 7. Ne5 {[%clk 0:02:41]}  Nxe5 {[%clk 0:02:44]} 8. Bxe5 {[%clk 0:02:42]}  e6 {[%clk 0:02:43]} 9. Qd4 {[%clk 0:02:37]}  Bf5 {[%clk 0:02:39]} 10. g4 {[%clk 0:01:50]}  Bg6 {[%clk 0:02:26]} 11. g5 {[%clk 0:01:47]}  Nd7 {[%clk 0:02:25]} 12. Bxg7 {[%clk 0:01:45]}  Bxc5 {[%clk 0:02:24]} 13. Qd2 {[%clk 0:01:45]}  Rg8 {[%clk 0:02:23]} 14. Bd4 {[%clk 0:01:41]}  Qb6 {[%clk 0:02:23]} 15. Bxc5 {[%clk 0:01:39]}  Nxc5 {[%clk 0:02:17]} 16. O-O-O {[%clk 0:01:35]}  Rc8 {[%clk 0:02:13]} 17. Qd4 {[%clk 0:01:28]}  Nb3+ {[%clk 0:01:41]} 18. cxb3 {[%clk 0:01:27]}  Qxb3 {[%clk 0:01:42]} 19. e4 {[%clk 0:01:18]}  Bxe4 {[%clk 0:01:35]} 20. Bd3 {[%clk 0:01:19]}  Bxh1 {[%clk 0:01:34]} 21. Rxh1 {[%clk 0:01:18]}  Rxg5 {[%clk 0:01:27]} 22. Bc2 {[%clk 0:01:11]}  Qc4 {[%clk 0:01:24]} 23. Qh8+ {[%clk 0:01:04]}  Ke7 {[%clk 0:01:25]} 24. Qxh7 {[%clk 0:00:59]}  Qf4+ {[%clk 0:01:17]} 25. Kb1 {[%clk 0:00:58]}  Qxf2 {[%clk 0:01:02]} 26. Rd1 {[%clk 0:00:36]}  Rg2 {[%clk 0:00:54]} 27. Rc1 {[%clk 0:00:26]}  Rxh2 {[%clk 0:00:42]} 28. Qg7 {[%clk 0:00:27]}  Rg2 {[%clk 0:00:41]} 29. Qe5 {[%clk 0:00:20]}  Rc5 {[%clk 0:00:09]} 30. Qb8 {[%clk 0:00:18]}  d4 {[%clk 0:00:05]} 31. Qxb7+ {[%clk 0:00:18]}  Kf8 {[%clk 0:00:04]} 32. Ne4 {[%clk 0:00:18]}  Qf3 {[%clk 0:00:04]} 33. Nxc5 {[%clk 0:00:17]}  Qe3 {[%clk 0:00:03]} 34. Qb4 {[%clk 0:00:16]}  d3 {[%clk 0:00:02]} 35. Nxd3+ {[%clk 0:00:16]}  Kg7 {[%clk 0:00:03]} 36. Qc3+ {[%clk 0:00:17]}  f6 {[%clk 0:00:02]} 37. Qc7+ {[%clk 0:00:16]}  Kg6 {[%clk 0:00:02]} 38. Nf4+ {[%clk 0:00:15]}  Kg5 {[%clk 0:00:02]} 39. Nxg2 {[%clk 0:00:16]}  Qf2 {[%clk 0:00:03]} 40. Qa5+ {[%clk 0:00:15]}  e5 {[%clk 0:00:02]} 41. Qe1 {[%clk 0:00:16]}  Qxg2 {[%clk 0:00:01]} 42. Qg1 {[%clk 0:00:17]}  Qxg1 {[%clk 0:00:00]} 43. Rxg1+ {[%clk 0:00:18]} 1-0


[Site "https://www.chess.com"]

[Event "Titled Tuesday Blitz June 20 Early 2023"]
[White "Gomes, Luiz Alexandre de Souza"]
[Black "Idani, Pouya"]
[WhiteFideId "2102790"]
[BlackFideId "12510130"]
[WhiteElo "2415"]
[BlackElo "2574"]
[Result "0-1"]
[Round "4"]
[TimeControl "180+2"]
[Date "2023.06.20"]
[WhiteClock "0:00:09"]
[BlackClock "0:00:22"]
[Board "139"]

1. e4 {[%clk 0:03:00]}  c5 {[%clk 0:02:59]} 2. Nf3 {[%clk 0:03:00]}  d6 {[%clk 0:02:58]} 3. d4 {[%clk 0:03:00]}  cxd4 {[%clk 0:02:59]} 4. Nxd4 {[%clk 0:03:00]}  Nf6 {[%clk 0:02:59]} 5. Nc3 {[%clk 0:03:01]}  a6 {[%clk 0:03:00]} 6. Rg1 {[%clk 0:03:01]}  b5 {[%clk 0:02:55]} 7. a3 {[%clk 0:03:01]}  Bb7 {[%clk 0:02:55]} 8. Bd3 {[%clk 0:03:01]}  e5 {[%clk 0:02:52]} 9. Nb3 {[%clk 0:03:01]}  Be7 {[%clk 0:02:46]} 10. g4 {[%clk 0:03:01]}  d5 {[%clk 0:02:46]} 11. exd5 {[%clk 0:02:59]}  Nxd5 {[%clk 0:02:47]} 12. Nxd5 {[%clk 0:02:59]}  Bxd5 {[%clk 0:02:46]} 13. Be3 {[%clk 0:02:57]}  Nc6 {[%clk 0:02:44]} 14. Qd2 {[%clk 0:02:37]}  Bxb3 {[%clk 0:02:20]} 15. cxb3 {[%clk 0:02:36]}  Nd4 {[%clk 0:02:21]} 16. Bxd4 {[%clk 0:02:33]}  Qxd4 {[%clk 0:02:20]} 17. O-O-O {[%clk 0:02:29]}  O-O {[%clk 0:02:11]} 18. Kb1 {[%clk 0:02:29]}  h6 {[%clk 0:01:50]} 19. Qe2 {[%clk 0:02:26]}  Qf4 {[%clk 0:01:47]} 20. Qe4 {[%clk 0:02:20]}  Qxe4 {[%clk 0:01:42]} 21. Bxe4 {[%clk 0:02:21]}  Rad8 {[%clk 0:01:41]} 22. h3 {[%clk 0:02:16]}  Bc5 {[%clk 0:01:40]} 23. Rxd8 {[%clk 0:01:48]}  Rxd8 {[%clk 0:01:40]} 24. Rg2 {[%clk 0:01:39]}  Rd2 {[%clk 0:01:26]} 25. Kc1 {[%clk 0:01:34]}  Re2 {[%clk 0:01:23]} 26. Bf3 {[%clk 0:01:29]}  Re1+ {[%clk 0:01:22]} 27. Kd2 {[%clk 0:01:28]}  Rh1 {[%clk 0:01:15]} 28. Bb7 {[%clk 0:01:27]}  a5 {[%clk 0:01:11]} 29. f3 {[%clk 0:01:20]}  Rxh3 {[%clk 0:01:08]} 30. Kc3 {[%clk 0:01:17]}  Bd4+ {[%clk 0:01:05]} 31. Kc2 {[%clk 0:01:16]}  g6 {[%clk 0:01:01]} 32. b4 {[%clk 0:01:16]}  axb4 {[%clk 0:01:00]} 33. axb4 {[%clk 0:01:16]}  Kg7 {[%clk 0:00:58]} 34. Bc6 {[%clk 0:01:14]}  h5 {[%clk 0:00:56]} 35. gxh5 {[%clk 0:01:13]}  Rxh5 {[%clk 0:00:57]} 36. Bxb5 {[%clk 0:01:10]}  f5 {[%clk 0:00:45]} 37. Bc6 {[%clk 0:01:10]}  Kf6 {[%clk 0:00:45]} 38. b5 {[%clk 0:01:10]}  Rh8 {[%clk 0:00:46]} 39. Kd3 {[%clk 0:01:06]}  Rd8 {[%clk 0:00:44]} 40. Kc4 {[%clk 0:01:05]}  Bb6 {[%clk 0:00:45]} 41. Bd5 {[%clk 0:01:02]}  Rh8 {[%clk 0:00:31]} 42. Rd2 {[%clk 0:00:57]}  Rh4+ {[%clk 0:00:30]} 43. Kb3 {[%clk 0:00:55]}  Ba5 {[%clk 0:00:30]} 44. Rc2 {[%clk 0:00:50]}  Rb4+ {[%clk 0:00:29]} 45. Ka3 {[%clk 0:00:50]}  Rxb5 {[%clk 0:00:29]} 46. Rc6+ {[%clk 0:00:48]}  Kg5 {[%clk 0:00:21]} 47. Bf7 {[%clk 0:00:48]}  Rb6 {[%clk 0:00:22]} 48. Rxb6 {[%clk 0:00:47]}  Bxb6 {[%clk 0:00:23]} 49. b4 {[%clk 0:00:45]}  e4 {[%clk 0:00:22]} 50. fxe4 {[%clk 0:00:45]}  fxe4 {[%clk 0:00:23]} 51. Kb3 {[%clk 0:00:43]}  e3 {[%clk 0:00:24]} 52. Kc2 {[%clk 0:00:43]}  Kf5 {[%clk 0:00:22]} 53. Kd3 {[%clk 0:00:43]}  g5 {[%clk 0:00:22]} 54. Bh5 {[%clk 0:00:41]}  g4 {[%clk 0:00:22]} 55. Ke2 {[%clk 0:00:40]}  Kf4 {[%clk 0:00:23]} 56. b5 {[%clk 0:00:38]}  Kg3 {[%clk 0:00:21]} 57. Be8 {[%clk 0:00:29]}  Kg2 {[%clk 0:00:20]} 58. Bc6+ {[%clk 0:00:28]}  Kg1 {[%clk 0:00:20]} 59. Bd5 {[%clk 0:00:24]}  g3 {[%clk 0:00:21]} 60. Bf3 {[%clk 0:00:19]}  g2 {[%clk 0:00:20]} 61. Be4 {[%clk 0:00:17]}  Kh2 {[%clk 0:00:20]} 62. Bxg2 {[%clk 0:00:14]}  Kxg2 {[%clk 0:00:21]} 63. Kd3 {[%clk 0:00:09]}  Kf3 {[%clk 0:00:22]} 0-1


[Site "https://www.chess.com"]

[Event "Titled Tuesday Blitz June 20 Early 2023"]
[White "Itkis, Boris"]
[Black "Korchmar, Vasiliy"]
[WhiteFideId "1209167"]
[BlackFideId "24131750"]
[WhiteElo "2219"]
[BlackElo "2370"]
[Result "1-0"]
[Round "4"]
[TimeControl "180+2"]
[Date "2023.06.20"]
[WhiteClock "0:00:23"]
[BlackClock "0:00:18"]
[Board "140"]

1. c4 {[%clk 0:03:00]}  c6 {[%clk 0:02:59]} 2. Nf3 {[%clk 0:03:00]}  d5 {[%clk 0:03:00]} 3. g3 {[%clk 0:03:01]}  g6 {[%clk 0:03:00]} 4. Bg2 {[%clk 0:03:00]}  Bg7 {[%clk 0:03:01]} 5. O-O {[%clk 0:03:00]}  e5 {[%clk 0:03:01]} 6. cxd5 {[%clk 0:03:00]}  cxd5 {[%clk 0:03:02]} 7. d4 {[%clk 0:02:57]}  e4 {[%clk 0:03:03]} 8. Ne1 {[%clk 0:02:56]}  Nc6 {[%clk 0:03:03]} 9. e3 {[%clk 0:02:56]}  Nge7 {[%clk 0:03:04]} 10. Nc3 {[%clk 0:02:55]}  O-O {[%clk 0:03:05]} 11. f3 {[%clk 0:02:43]}  f5 {[%clk 0:03:05]} 12. fxe4 {[%clk 0:02:42]}  dxe4 {[%clk 0:03:03]} 13. g4 {[%clk 0:02:31]}  Be6 {[%clk 0:03:01]} 14. gxf5 {[%clk 0:02:31]}  gxf5 {[%clk 0:03:02]} 15. Kh1 {[%clk 0:02:29]}  Kh8 {[%clk 0:03:02]} 16. Rg1 {[%clk 0:02:28]}  Ng6 {[%clk 0:03:02]} 17. Qe2 {[%clk 0:02:25]}  Nh4 {[%clk 0:02:44]} 18. Qf2 {[%clk 0:02:22]}  f4 {[%clk 0:02:10]} 19. exf4 {[%clk 0:01:39]}  Nxg2 {[%clk 0:02:00]} 20. Nxg2 {[%clk 0:01:33]}  Nxd4 {[%clk 0:02:01]} 21. Be3 {[%clk 0:01:24]}  Nf3 {[%clk 0:02:00]} 22. Rgd1 {[%clk 0:01:25]}  Qe8 {[%clk 0:01:48]} 23. Nxe4 {[%clk 0:01:21]}  Qh5 {[%clk 0:01:48]} 24. Qg3 {[%clk 0:00:50]}  Bxb2 {[%clk 0:01:25]} 25. Rab1 {[%clk 0:00:47]}  Rg8 {[%clk 0:01:20]} 26. Ng5 {[%clk 0:00:47]}  Nxg5 {[%clk 0:01:12]} 27. fxg5 {[%clk 0:00:48]}  Bxa2 {[%clk 0:00:53]} 28. Nf4 {[%clk 0:00:42]}  Bxb1 {[%clk 0:00:19]} 29. Nxh5 {[%clk 0:00:38]}  Be4+ {[%clk 0:00:19]} 30. Kg1 {[%clk 0:00:37]}  Raf8 {[%clk 0:00:20]} 31. Bd4+ {[%clk 0:00:28]}  Bxd4+ {[%clk 0:00:20]} 32. Rxd4 {[%clk 0:00:29]}  Rf5 {[%clk 0:00:21]} 33. h4 {[%clk 0:00:24]}  h6 {[%clk 0:00:18]} 34. Rxe4 {[%clk 0:00:23]} 1-0


[Site "https://www.chess.com"]

[Event "Titled Tuesday Blitz June 20 Early 2023"]
[White "Buchenau, Frank"]
[Black "Jakubowski, Krzysztof"]
[WhiteFideId "4604350"]
[BlackFideId "1112848"]
[WhiteElo "2157"]
[BlackElo "2359"]
[Result "0-1"]
[Round "4"]
[TimeControl "180+2"]
[Date "2023.06.20"]
[WhiteClock "0:00:10"]
[BlackClock "0:00:26"]
[Board "141"]

1. e4 {[%clk 0:03:00]}  c6 {[%clk 0:02:59]} 2. Nf3 {[%clk 0:03:00]}  d5 {[%clk 0:02:59]} 3. Nc3 {[%clk 0:03:00]}  Bg4 {[%clk 0:02:57]} 4. d4 {[%clk 0:02:57]}  e6 {[%clk 0:02:54]} 5. h3 {[%clk 0:02:56]}  Bh5 {[%clk 0:02:52]} 6. Bd3 {[%clk 0:02:51]}  Nf6 {[%clk 0:02:49]} 7. e5 {[%clk 0:02:46]}  Nfd7 {[%clk 0:02:49]} 8. g4 {[%clk 0:02:46]}  Bg6 {[%clk 0:02:48]} 9. Bxg6 {[%clk 0:02:46]}  hxg6 {[%clk 0:02:47]} 10. Ne2 {[%clk 0:02:46]}  c5 {[%clk 0:02:45]} 11. c3 {[%clk 0:02:46]}  Nc6 {[%clk 0:02:44]} 12. Kf1 {[%clk 0:02:46]}  cxd4 {[%clk 0:02:42]} 13. cxd4 {[%clk 0:02:46]}  Rc8 {[%clk 0:02:42]} 14. Kg2 {[%clk 0:02:46]}  Qb6 {[%clk 0:02:39]} 15. Rb1 {[%clk 0:02:44]}  Be7 {[%clk 0:02:38]} 16. b4 {[%clk 0:02:43]}  a6 {[%clk 0:02:33]} 17. Bd2 {[%clk 0:02:39]}  Na7 {[%clk 0:01:48]} 18. a4 {[%clk 0:02:36]}  Rc4 {[%clk 0:01:48]} 19. Qb3 {[%clk 0:02:09]}  Qc7 {[%clk 0:01:45]} 20. Rbc1 {[%clk 0:01:52]}  b5 {[%clk 0:01:33]} 21. Nf4 {[%clk 0:01:45]}  Nc6 {[%clk 0:01:30]} 22. Rxc4 {[%clk 0:01:37]}  bxc4 {[%clk 0:01:28]} 23. Qb1 {[%clk 0:01:33]}  Qb6 {[%clk 0:01:27]} 24. Nxe6 {[%clk 0:01:22]}  fxe6 {[%clk 0:01:23]} 25. Qxg6+ {[%clk 0:01:22]}  Kd8 {[%clk 0:01:21]} 26. Qxe6 {[%clk 0:01:12]}  Nxb4 {[%clk 0:01:12]} 27. Ng5 {[%clk 0:00:55]}  Bxg5 {[%clk 0:00:59]} 28. Bxg5+ {[%clk 0:00:53]}  Kc8 {[%clk 0:00:59]} 29. Qxb6 {[%clk 0:00:32]}  Nxb6 {[%clk 0:00:58]} 30. a5 {[%clk 0:00:32]}  Na4 {[%clk 0:00:52]} 31. e6 {[%clk 0:00:23]}  Nc6 {[%clk 0:00:51]} 32. f4 {[%clk 0:00:22]}  Nc3 {[%clk 0:00:44]} 33. f5 {[%clk 0:00:21]}  Ne4 {[%clk 0:00:44]} 34. Be3 {[%clk 0:00:19]}  c3 {[%clk 0:00:40]} 35. h4 {[%clk 0:00:17]}  Ne7 {[%clk 0:00:36]} 36. h5 {[%clk 0:00:16]}  Kc7 {[%clk 0:00:35]} 37. h6 {[%clk 0:00:16]}  gxh6 {[%clk 0:00:34]} 38. Rxh6 {[%clk 0:00:16]}  Rxh6 {[%clk 0:00:33]} 39. Bxh6 {[%clk 0:00:17]}  c2 {[%clk 0:00:30]} 40. Kf3 {[%clk 0:00:16]}  Kd8 {[%clk 0:00:28]} 41. Bc1 {[%clk 0:00:16]}  Nc3 {[%clk 0:00:25]} 42. f6 {[%clk 0:00:14]}  Na2 {[%clk 0:00:25]} 43. fxe7+ {[%clk 0:00:13]}  Kxe7 {[%clk 0:00:25]} 44. Ba3+ {[%clk 0:00:14]}  Kxe6 {[%clk 0:00:25]} 45. Kf4 {[%clk 0:00:13]}  c1=Q+ {[%clk 0:00:25]} 46. Bxc1 {[%clk 0:00:13]}  Nxc1 {[%clk 0:00:26]} 47. Kg5 {[%clk 0:00:13]}  Nb3 {[%clk 0:00:25]} 48. Kh6 {[%clk 0:00:13]}  Nxd4 {[%clk 0:00:25]} 49. g5 {[%clk 0:00:10]}  Nf5+ {[%clk 0:00:26]} 0-1


[Site "https://www.chess.com"]

[Event "Titled Tuesday Blitz June 20 Early 2023"]
[White "FromTexas54"]
[Black "Mendez Fortes, Eduardo Jesus"]
[BlackFideId "3502376"]
[WhiteElo "2411"]
[BlackElo "2307"]
[Result "1-0"]
[Round "4"]
[TimeControl "180+2"]
[Date "2023.06.20"]
[WhiteClock "0:00:04"]
[BlackClock "0:00:08"]
[Board "142"]

1. d4 {[%clk 0:03:00]}  Nf6 {[%clk 0:02:53]} 2. c4 {[%clk 0:03:01]}  e6 {[%clk 0:02:50]} 3. Nf3 {[%clk 0:03:00]}  d5 {[%clk 0:02:50]} 4. Nc3 {[%clk 0:03:00]}  Bb4 {[%clk 0:02:50]} 5. cxd5 {[%clk 0:03:00]}  exd5 {[%clk 0:02:50]} 6. Bg5 {[%clk 0:03:00]}  h6 {[%clk 0:02:49]} 7. Bh4 {[%clk 0:03:00]}  O-O {[%clk 0:02:49]} 8. e3 {[%clk 0:03:00]}  Bf5 {[%clk 0:02:48]} 9. Bd3 {[%clk 0:02:53]}  Bxd3 {[%clk 0:02:48]} 10. Qxd3 {[%clk 0:02:54]}  g5 {[%clk 0:02:36]} 11. Bg3 {[%clk 0:02:54]}  Ne4 {[%clk 0:02:36]} 12. O-O {[%clk 0:02:53]}  Bxc3 {[%clk 0:02:36]} 13. bxc3 {[%clk 0:02:53]}  h5 {[%clk 0:02:35]} 14. c4 {[%clk 0:02:33]}  Na6 {[%clk 0:02:26]} 15. cxd5 {[%clk 0:02:30]}  Qxd5 {[%clk 0:02:27]} 16. h4 {[%clk 0:02:10]}  Nxg3 {[%clk 0:02:23]} 17. fxg3 {[%clk 0:02:11]}  Rfe8 {[%clk 0:02:23]} 18. Nxg5 {[%clk 0:02:07]}  f5 {[%clk 0:02:09]} 19. Rxf5 {[%clk 0:02:05]}  Nb4 {[%clk 0:02:01]} 20. Qb1 {[%clk 0:01:51]}  Qc4 {[%clk 0:01:58]} 21. Rf7 {[%clk 0:01:42]}  Nc2 {[%clk 0:01:56]} 22. Qd1 {[%clk 0:01:19]}  Nxe3 {[%clk 0:00:59]} 23. Qxh5 {[%clk 0:01:06]}  Qc2 {[%clk 0:00:54]} 24. Rf2 {[%clk 0:00:58]}  Qd3 {[%clk 0:00:49]} 25. Qf7+ {[%clk 0:00:44]}  Kh8 {[%clk 0:00:50]} 26. Qf6+ {[%clk 0:00:40]}  Kg8 {[%clk 0:00:50]} 27. Qf7+ {[%clk 0:00:39]}  Kh8 {[%clk 0:00:50]} 28. Re1 {[%clk 0:00:15]}  Rf8 {[%clk 0:00:37]} 29. Qh5+ {[%clk 0:00:12]}  Kg8 {[%clk 0:00:37]} 30. Rxe3 {[%clk 0:00:11]}  Qb1+ {[%clk 0:00:35]} 31. Kh2 {[%clk 0:00:09]}  Rxf2 {[%clk 0:00:34]} 32. Re7 {[%clk 0:00:08]}  Qc2 {[%clk 0:00:20]} 33. Qh6 {[%clk 0:00:05]}  Rxg2+ {[%clk 0:00:20]} 34. Kh3 {[%clk 0:00:06]}  Rh2+ {[%clk 0:00:21]} 35. Kg4 {[%clk 0:00:06]}  Qd1+ {[%clk 0:00:15]} 36. Nf3 {[%clk 0:00:05]}  Rxh4+ {[%clk 0:00:15]} 37. gxh4 {[%clk 0:00:04]}  Qg1+ {[%clk 0:00:08]} 38. Nxg1 {[%clk 0:00:04]}  Rf8 {[%clk 0:00:08]} 39. Qg7# {[%clk 0:00:04]} 1-0


[Site "https://www.chess.com"]

[Event "Titled Tuesday Blitz June 20 Early 2023"]
[White "Adla, Diego"]
[Black "Fiedorek, Michal"]
[WhiteFideId "100072"]
[BlackFideId "1199528"]
[WhiteElo "2377"]
[BlackElo "2135"]
[Result "1-0"]
[Round "4"]
[TimeControl "180+2"]
[Date "2023.06.20"]
[WhiteClock "0:02:12"]
[BlackClock "0:00:46"]
[Board "145"]

1. c4 {[%clk 0:03:00]}  Nf6 {[%clk 0:02:56]} 2. Nc3 {[%clk 0:03:00]}  g6 {[%clk 0:02:56]} 3. e4 {[%clk 0:03:00]}  d6 {[%clk 0:02:56]} 4. d4 {[%clk 0:03:01]}  Bg7 {[%clk 0:02:57]} 5. Nf3 {[%clk 0:03:01]}  O-O {[%clk 0:02:57]} 6. Be2 {[%clk 0:03:01]}  e5 {[%clk 0:02:53]} 7. d5 {[%clk 0:03:01]}  a5 {[%clk 0:02:53]} 8. Bg5 {[%clk 0:03:01]}  h6 {[%clk 0:02:52]} 9. Be3 {[%clk 0:03:01]}  Ng4 {[%clk 0:02:52]} 10. Bd2 {[%clk 0:03:01]}  f5 {[%clk 0:02:53]} 11. h3 {[%clk 0:03:00]}  Nf6 {[%clk 0:02:53]} 12. exf5 {[%clk 0:03:00]}  gxf5 {[%clk 0:02:53]} 13. Qc1 {[%clk 0:03:01]}  Kh7 {[%clk 0:02:52]} 14. g4 {[%clk 0:03:00]}  Na6 {[%clk 0:02:46]} 15. g5 {[%clk 0:02:52]}  Ne4 {[%clk 0:02:16]} 16. Nxe4 {[%clk 0:02:42]}  fxe4 {[%clk 0:02:15]} 17. Nh2 {[%clk 0:02:42]}  hxg5 {[%clk 0:01:59]} 18. Bxg5 {[%clk 0:02:43]}  Bf6 {[%clk 0:01:57]} 19. h4 {[%clk 0:02:42]}  Nc5 {[%clk 0:01:51]} 20. Qe3 {[%clk 0:02:42]}  Bf5 {[%clk 0:01:37]} 21. O-O-O {[%clk 0:02:37]}  Nd3+ {[%clk 0:01:30]} 22. Kb1 {[%clk 0:02:35]}  Nf4 {[%clk 0:01:21]} 23. Bg4 {[%clk 0:02:31]}  Qd7 {[%clk 0:01:08]} 24. Rdg1 {[%clk 0:02:22]}  Nh3 {[%clk 0:00:46]} 25. Qxh3 {[%clk 0:02:12]} 1-0


[Site "https://www.chess.com"]

[Event "Titled Tuesday Blitz June 20 Early 2023"]
[White "Zilleruelo Irizarry, Diego"]
[Black "Parpiev, Isaak"]
[WhiteFideId "3101460"]
[BlackFideId "34281576"]
[WhiteElo "2009"]
[BlackElo "2167"]
[Result "0-1"]
[Round "4"]
[TimeControl "180+2"]
[Date "2023.06.20"]
[WhiteClock "0:00:18"]
[BlackClock "0:01:50"]
[Board "146"]

1. e4 {[%clk 0:03:00]}  c6 {[%clk 0:02:59]} 2. d4 {[%clk 0:03:00]}  d5 {[%clk 0:02:59]} 3. exd5 {[%clk 0:03:01]}  cxd5 {[%clk 0:03:00]} 4. Bd3 {[%clk 0:03:01]}  Nc6 {[%clk 0:03:00]} 5. c3 {[%clk 0:03:00]}  Nf6 {[%clk 0:02:59]} 6. h3 {[%clk 0:03:01]}  g6 {[%clk 0:02:51]} 7. Nf3 {[%clk 0:02:54]}  Bg7 {[%clk 0:02:52]} 8. O-O {[%clk 0:02:54]}  O-O {[%clk 0:02:52]} 9. Bf4 {[%clk 0:02:54]}  Bf5 {[%clk 0:02:53]} 10. Bxf5 {[%clk 0:02:52]}  gxf5 {[%clk 0:02:54]} 11. Ne5 {[%clk 0:02:53]}  e6 {[%clk 0:02:54]} 12. Nd2 {[%clk 0:02:51]}  Kh8 {[%clk 0:02:54]} 13. Nxc6 {[%clk 0:02:45]}  bxc6 {[%clk 0:02:55]} 14. b4 {[%clk 0:02:46]}  a5 {[%clk 0:02:54]} 15. a3 {[%clk 0:02:46]}  Ne4 {[%clk 0:02:54]} 16. Nxe4 {[%clk 0:02:31]}  fxe4 {[%clk 0:02:54]} 17. f3 {[%clk 0:02:30]}  f5 {[%clk 0:02:43]} 18. Be5 {[%clk 0:02:29]}  Bxe5 {[%clk 0:02:39]} 19. dxe5 {[%clk 0:02:29]}  axb4 {[%clk 0:02:35]} 20. cxb4 {[%clk 0:02:29]}  e3 {[%clk 0:02:28]} 21. Qd4 {[%clk 0:02:21]}  f4 {[%clk 0:02:27]} 22. Rfc1 {[%clk 0:02:21]}  Rc8 {[%clk 0:02:23]} 23. Rc5 {[%clk 0:02:17]}  Qg5 {[%clk 0:02:22]} 24. Rac1 {[%clk 0:02:10]}  Rg8 {[%clk 0:02:17]} 25. Qb2 {[%clk 0:01:59]}  Qg3 {[%clk 0:02:12]} 26. Kh1 {[%clk 0:01:54]}  d4 {[%clk 0:02:01]} 27. Rd1 {[%clk 0:01:27]}  d3 {[%clk 0:01:49]} 28. Rxd3 {[%clk 0:01:22]}  Qe1+ {[%clk 0:01:49]} 29. Kh2 {[%clk 0:00:18]}  e2 {[%clk 0:01:50]} 0-1


[Site "https://www.chess.com"]

[Event "Titled Tuesday Blitz June 20 Early 2023"]
[White "Silva Lucena, Cristian"]
[Black "Pham, Khoi"]
[WhiteFideId "2232588"]
[BlackFideId "1054988"]
[WhiteElo "2223"]
[BlackElo "2542"]
[Result "0-1"]
[Round "4"]
[TimeControl "180+2"]
[Date "2023.06.20"]
[WhiteClock "0:00:47"]
[BlackClock "0:01:55"]
[Board "149"]

1. d4 {[%clk 0:03:00]}  f5 {[%clk 0:02:57]} 2. g4 {[%clk 0:02:59]}  fxg4 {[%clk 0:02:57]} 3. h3 {[%clk 0:03:00]}  d5 {[%clk 0:02:58]} 4. Nc3 {[%clk 0:02:57]}  Nf6 {[%clk 0:02:58]} 5. hxg4 {[%clk 0:02:55]}  Bxg4 {[%clk 0:02:58]} 6. Bg5 {[%clk 0:02:56]}  Nc6 {[%clk 0:02:56]} 7. Nh3 {[%clk 0:02:56]}  Qd7 {[%clk 0:02:52]} 8. Nf4 {[%clk 0:02:55]}  e6 {[%clk 0:02:52]} 9. Ng6 {[%clk 0:02:47]}  Rg8 {[%clk 0:02:52]} 10. Ne5 {[%clk 0:02:39]}  Qd6 {[%clk 0:02:21]} 11. f3 {[%clk 0:02:18]}  Bf5 {[%clk 0:02:19]} 12. Bf4 {[%clk 0:01:30]}  Nxe5 {[%clk 0:02:11]} 13. Bxe5 {[%clk 0:01:21]}  Qb6 {[%clk 0:02:10]} 14. Bxf6 {[%clk 0:01:10]}  gxf6 {[%clk 0:02:10]} 15. e4 {[%clk 0:01:11]}  dxe4 {[%clk 0:02:09]} 16. fxe4 {[%clk 0:01:12]}  Bg4 {[%clk 0:02:05]} 17. Qd2 {[%clk 0:01:07]}  O-O-O {[%clk 0:02:02]} 18. d5 {[%clk 0:01:02]}  Bd6 {[%clk 0:01:57]} 19. Qf2 {[%clk 0:00:47]}  Qxb2 {[%clk 0:01:55]} 0-1


[Site "https://www.chess.com"]

[Event "Titled Tuesday Blitz June 20 Early 2023"]
[White "Novikova, Galina"]
[Black "Krutko, Anatoly"]
[WhiteFideId "4157095"]
[BlackFideId "4185862"]
[WhiteElo "1953"]
[BlackElo "2378"]
[Result "0-1"]
[Round "4"]
[TimeControl "180+2"]
[Date "2023.06.20"]
[WhiteClock "0:00:52"]
[BlackClock "0:00:42"]
[Board "150"]

1. e4 {[%clk 0:03:00]}  g6 {[%clk 0:02:51]} 2. d4 {[%clk 0:03:00]}  Bg7 {[%clk 0:02:51]} 3. Nc3 {[%clk 0:03:01]}  a6 {[%clk 0:02:50]} 4. Be3 {[%clk 0:03:01]}  b5 {[%clk 0:02:51]} 5. f3 {[%clk 0:03:02]}  Bb7 {[%clk 0:02:51]} 6. Qd2 {[%clk 0:03:03]}  d6 {[%clk 0:02:51]} 7. O-O-O {[%clk 0:03:03]}  Nd7 {[%clk 0:02:52]} 8. g4 {[%clk 0:03:03]}  h5 {[%clk 0:02:43]} 9. gxh5 {[%clk 0:03:03]}  Rxh5 {[%clk 0:02:43]} 10. Nge2 {[%clk 0:03:02]}  c5 {[%clk 0:02:42]} 11. Ng3 {[%clk 0:02:57]}  Rh8 {[%clk 0:02:41]} 12. Bg2 {[%clk 0:02:37]}  cxd4 {[%clk 0:02:38]} 13. Bxd4 {[%clk 0:02:37]}  Ngf6 {[%clk 0:02:38]} 14. Nd5 {[%clk 0:02:32]}  Bxd5 {[%clk 0:02:33]} 15. exd5 {[%clk 0:02:32]}  Ne5 {[%clk 0:02:26]} 16. Bxe5 {[%clk 0:02:03]}  dxe5 {[%clk 0:02:25]} 17. Kb1 {[%clk 0:02:03]}  Qd6 {[%clk 0:02:13]} 18. Ne4 {[%clk 0:02:03]}  Nxe4 {[%clk 0:02:13]} 19. fxe4 {[%clk 0:02:04]}  Rc8 {[%clk 0:02:11]} 20. h4 {[%clk 0:02:03]}  Bh6 {[%clk 0:01:57]} 21. Qe2 {[%clk 0:02:03]}  Bf4 {[%clk 0:01:55]} 22. Bf3 {[%clk 0:02:03]}  Kf8 {[%clk 0:01:46]} 23. h5 {[%clk 0:02:03]}  g5 {[%clk 0:01:46]} 24. Bg4 {[%clk 0:01:58]}  Rc7 {[%clk 0:01:46]} 25. Qd3 {[%clk 0:01:43]}  Kg7 {[%clk 0:01:44]} 26. Bf5 {[%clk 0:01:40]}  Rh6 {[%clk 0:01:43]} 27. Bg4 {[%clk 0:01:40]}  Qc5 {[%clk 0:01:42]} 28. Qe2 {[%clk 0:01:33]}  a5 {[%clk 0:01:42]} 29. Qd3 {[%clk 0:01:32]}  a4 {[%clk 0:01:43]} 30. Be2 {[%clk 0:01:22]}  b4 {[%clk 0:01:33]} 31. Qb5 {[%clk 0:01:22]}  Qxc2+ {[%clk 0:01:33]} 32. Ka1 {[%clk 0:01:22]}  a3 {[%clk 0:01:30]} 33. Rb1 {[%clk 0:01:14]}  Bc1 {[%clk 0:01:07]} 34. Rhxc1 {[%clk 0:01:05]}  Qxc1 {[%clk 0:01:07]} 35. Qxb4 {[%clk 0:01:01]}  axb2+ {[%clk 0:01:02]} 36. Qxb2 {[%clk 0:01:02]}  Qxb2+ {[%clk 0:01:01]} 37. Rxb2 {[%clk 0:01:03]}  Rc1+ {[%clk 0:01:00]} 38. Rb1 {[%clk 0:01:04]}  Rxb1+ {[%clk 0:00:46]} 39. Kxb1 {[%clk 0:01:04]}  Rb6+ {[%clk 0:00:44]} 40. Kc2 {[%clk 0:01:04]}  Rb4 {[%clk 0:00:44]} 41. Bd3 {[%clk 0:01:04]}  g4 {[%clk 0:00:43]} 42. a3 {[%clk 0:00:59]}  g3 {[%clk 0:00:43]} 43. Bf1 {[%clk 0:00:52]}  Rxe4 {[%clk 0:00:42]} 0-1


[Site "https://www.chess.com"]